Workbook

Sheet 1 财政拨款收支总表
A1: 附件4-1
A2: 重庆市綦江区水利局（本级）财政拨款收支总表
G4: 单位：万元
A5: 收入 | C5: 支出
A6: 项目 | B6: 预算数 | C6: 项目 | D6: 合计 | E6: 一般公共预算财政拨款 | F6: 政府性基金预算财政拨款 | G6: 国有资本经营预算财政拨款
A7: 一、本年收入 | B7: =B8+B9+B10 -> 7,634.89 | C7: 一、本年支出 | D7: =E7+F7+G7 -> 51,367.49 | E7: =SUM(E8:E14) -> 45,427.83 | F7: =SUM(F8:F14) -> 5,939.66
A8: 一般公共预算拨款 | B8: 1,906.53 | C8: 科学技术支出 | D8: 0.00 | E8: 0.00 | F8: 0.00
A9: 政府性基金预算拨款 | B9: 5,728.36 | C9: 社会保障和就业支出 | D9: 123.53 | E9: 123.53 | F9: 0.00
A10: 国有资本经营预算拨款 | B10: 0.00 | C10: 卫生健康支出 | D10: 25.84 | E10: 25.84 | F10: 0.00
A11: 二、上年结转 | B11: =B12+B13+B14 -> 43,732.60 | C11: 节能环保支出 | D11: 500.00 | E11: 500.00 | F11: 0.00
A12: 一般公共预算拨款 | B12: 43,521.30 | C12: 城乡社区支出 | D12: 5,364.36 | E12: 0.00 | F12: 5,364.36
A13: 政府性基金预算拨款 | B13: 211.30 | C13: 农林水支出 | D13: 45,323.37 | E13: 44,748.07 | F13: 575.30
A14: 国有资本经营预算拨款 | C14: 住房保障支出 | D14: 30.39 | E14: 30.39 | F14: 0.00
C15: 二、结转下年 | D15: 0.00 | E15: 0.00 | F15: 0.00
A17: 收入总数 | B17: =B7+B11 -> 51,367.49 | C17: 支出总数 | D17: =D7+D15 -> 51,367.49 | E17: 45,427.83 | F17: 5,939.66

Sheet 2 一般公共预算支出
A1: 附件4-2
A2: 重庆市綦江区水利局（本级）一般公共预算财政拨款支出预算表
E4: 单位：万元
A5: 功能分类科目 | C5: 2025年预算数
A6: 科目编码 | B6: 科目名称 | C6: 小计 | D6: 基本支出 | E6: 项目支出
A7: 合计 | C7: =D7+E7 -> 45,427.84 | D7: =D8+D11+D16+D22+D25+D43 -> 539.41 | E7: =E8+E11+E16+E22+E25+E43 -> 44,888.43
A8: 206 | B8: 科学技术支出 | C8: 0.00 | D8: 0.00 | E8: 0.00
A9: 20604 | B9: 技术研究与开发 | C9: 0.00 | D9: 0.00 | E9: 0.00
A10: 2060404 | B10: 科技成果转化与扩散 | C10: 0.00 | D10: 0.00 | E10: 0.00
A11: 208 | B11: 社会保障和就业支出 | C11: 123.53 | D11: 123.53 | E11: 0.00
A12: 20805 | B12: 行政事业单位养老支出 | C12: 123.53 | D12: 123.53 | E12: 0.00
A13: 2080505 | B13: 机关事业单位基本养老保险缴费支出 | C13: 35.94 | D13: 35.94 | E13: 0.00
A14: 2080506 | B14: 机关事业单位职业年金缴费支出 | C14: 17.97 | D14: 17.97 | E14: 0.00
A15: 2080599 | B15: 其他行政事业单位养老支出 | C15: 69.62 | D15: 69.62 | E15: 0.00
A16: 210 | B16: 卫生健康支出 | C16: 25.84 | D16: 25.84 | E16: 0.00
A17: 21011 | B17: 行政事业单位医疗 | C17: 25.84 | D17: 25.84 | E17: 0.00
A18: 2101101 | B18: 行政单位医疗 | C18: 23.44 | D18: 23.44 | E18: 0.00
A19: 2101102 | B19: 事业单位医疗 | C19: 0.00 | D19: 0.00 | E19: 0.00
A20: 2101103 | B20: 公务员医疗补助 | C20: 2.40 | D20: 2.40 | E20: 0.00
A21: 2101199 | B21: 其他行政事业单位医疗支出 | C21: 0.00 | D21: 0.00 | E21: 0.00
A22: 211 | B22: 节能环保支出 | C22: 500.00 | D22: 0.00 | E22: 500.00
A23: 21103 | B23: 污染防治 | C23: 500.00 | D23: 0.00 | E23: 500.00
A24: 2110302 | B24: 水体 | C24: 500.00 | D24: 0.00 | E24: 500.00
A25: 213 | B25: 农林水支出 | C25: 44,748.08 | D25: 359.65 | E25: 44,388.43
A26: 21303 | B26: 水利 | C26: 44,748.08 | D26: 359.65 | E26: 44,388.43
A27: 2130301 | B27: 行政运行 | C27: 359.65 | D27: 359.65 | E27: 0.00
A28: 2130302 | B28: 一般行政管理事务 | C28: 221.33 | D28: 0.00 | E28: 221.33
A29: 2130304 | B29: 水利行业业务管理 | C29: 36.13 | D29: 0.00 | E29: 36.13
A30: 2130305 | B30: 水利工程建设 | C30: 28,492.46 | D30: 0.00 | E30: 28,492.46
A31: 2130306 | B31: 水利工程运行与维护 | C31: 0.00 | D31: 0.00 | E31: 0.00
A32: 2130310 | B32: 水土保持 | C32: 94.43 | D32: 0.00 | E32: 94.43
A33: 2130311 | B33: 水资源节约管理与保护 | C33: 144.67 | D33: 0.00 | E33: 144.67
A34: 2130312 | B34: 水质监测 | C34: 0.00 | D34: 0.00 | E34: 0.00
A35: 2130313 | B35: 水文测报 | C35: 129.80 | D35: 0.00 | E35: 129.80
A36: 2130314 | B36: 防汛 | C36: 163.15 | D36: 0.00 | E36: 163.15
A37: 2130315 | B37: 抗旱 | C37: 0.00 | D37: 0.00 | E37: 0.00
A38: 2130316 | B38: 农村水利 | C38: 7,378.83 | D38: 0.00 | E38: 7,378.83
A39: 2130319 | B39: 江河湖库水系综合整治 | C39: 7,727.64 | D39: 0.00 | E39: 7,727.64
A40: 2130335 | B40: 农村供水 | C40: 0.00 | D40: 0.00 | E40: 0.00
A41: 21305 | B41: 巩固脱贫攻坚成果衔接乡村振兴 | C41: 0.00 | D41: 0.00 | E41: 0.00
A42: 2130504 | B42: 农村基础设施建设 | C42: 0.00 | D42: 0.00 | E42: 0.00
A43: 221 | B43: 住房保障支出 | C43: 30.39 | D43: 30.39 | E43: 0.00
A44: 22102 | B44: 住房改革支出 | C44: 30.39 | D44: 30.39 | E44: 0.00
A45: 2210201 | B45: 住房公积金 | C45: 30.39 | D45: 30.39 | E45: 0.00
A46: 备注：本表反映2025年当年一般公共预算财政拨款支出情况。

Sheet 3 一般公共预算财政基本支出
A1: 附件4-3
A2: 重庆市綦江区水利局（本级）一般公共预算财政拨款基本支出预算表
E4: 单位：万元
A5: 经济分类科目 | C5: 2025年基本支出
A6: 科目编码 | B6: 科目名称 | C6: 合计 | D6: 人员经费 | E6: 公用经费
A7: 合计 | C7: =D7+E7 -> 539.41 | D7: =D8+D19+D34+D38 -> 434.39 | E7: =E8+E19+E34+E38 -> 105.02
A8: 301 | B8: 工资福利支出 | C8: 366.89 | D8: 366.89 | E8: 0.00
A9: 30101 | B9: 基本工资 | C9: 88.52 | D9: 88.52 | E9: 0.00
A10: 30102 | B10: 津贴补贴 | C10: 55.64 | D10: 55.64 | E10: 0.00
A11: 30103 | B11: 奖金 | C11: 109.13 | D11: 109.13 | E11: 0.00
A12: 30107 | B12: 绩效工资 | C12: 0.00 | D12: 0.00 | E12: 0.00
A13: 30108 | B13: 机关事业单位基本养老保险缴费 | C13: 35.94 | D13: 35.94 | E13: 0.00
A14: 30109 | B14: 职业年金缴费 | C14: 17.97 | D14: 17.97 | E14: 0.00
A15: 30110 | B15: 职工基本医疗保险缴费 | C15: 23.44 | D15: 23.44 | E15: 0.00
A16: 30112 | B16: 其他社会保障缴费 | C16: 3.46 | D16: 3.46 | E16: 0.00
A17: 30113 | B17: 住房公积金 | C17: 30.39 | D17: 30.39 | E17: 0.00
A18: 30114 | B18: 医疗费 | C18: 2.40 | D18: 2.40 | E18: 0.00
A19: 302 | B19: 商品和服务支出 | C19: 101.02 | D19: 0.00 | E19: 101.02
A20: 30201 | B20: 办公费 | C20: 3.00 | D20: 0.00 | E20: 3.00
A21: 30207 | B21: 邮电费 | C21: 4.68 | D21: 0.00 | E21: 4.68
A22: 30211 | B22: 差旅费 | C22: 0.00 | D22: 0.00 | E22: 0.00
A23: 30213 | B23: 维修（护）费 | C23: 0.00 | D23: 0.00 | E23: 0.00
A24: 30215 | B24: 会议费 | C24: 6.00 | D24: 0.00 | E24: 6.00
A25: 30216 | B25: 培训费 | C25: 2.16 | D25: 0.00 | E25: 2.16
A26: 30217 | B26: 公务接待费 | C26: 8.00 | D26: 0.00 | E26: 8.00
A27: 30226 | B27: 劳务费 | C27: 38.60 | D27: 0.00 | E27: 38.60
A28: 30227 | B28: 委托业务费 | C28: 0.00 | D28: 0.00 | E28: 0.00
A29: 30228 | B29: 工会经费 | C29: 5.88 | D29: 0.00 | E29: 5.88
A30: 30229 | B30: 福利费 | C30: 2.66 | D30: 0.00 | E30: 2.66
A31: 30231 | B31: 公务用车运行维护费 | C31: 6.50 | D31: 0.00 | E31: 6.50
A32: 30239 | B32: 其他交通费用 | C32: 21.41 | D32: 0.00 | E32: 21.41
A33: 30299 | B33: 其他商品和服务支出 | C33: 2.12 | D33: 0.00 | E33: 2.12
A34: 303 | B34: 对个人和家庭的补助 | C34: 67.50 | D34: 67.50 | E34: 0.00
A35: 30305 | B35: 生活补助 | C35: 62.10 | D35: 62.10 | E35: 0.00
A36: 30307 | B36: 医疗费补助 | C36: 5.40 | D36: 5.40 | E36: 0.00
A37: 30309 | B37: 奖励金 | C37: 0.00 | D37: 0.00 | E37: 0.00
A38: 310 | B38: 资本性支出 | C38: 4.00 | D38: 0.00 | E38: 4.00
A39: 31002 | B39: 办公设备购置 | C39: 4.00 | D39: 0.00 | E39: 4.00

Sheet 4 一般公用预算“三公”经费支出表
A1: 附件3-4 | G1: 附件4-4
A2: 重庆市綦江区水土保持站一般公共预算“三公”经费支出表 | G2: 重庆市綦江区水利局（本级）一般公共预算“三公”经费支出表
L4: 单位：万元
A5: 2020年预算数 | G5: 2025年预算数
A6: 合计 | B6: 因公出国（境）费 | C6: 公务用车购置及运行费 | F6: 公务接待费 | G6: 合计 | H6: 因公出国（境）费 | I6: 公务用车购置及运行费 | L6: 公务接待费
C7: 小计 | D7: 公务用车购置费 | E7: 公务用车运行费 | I7: 小计 | J7: 公务用车购置费 | K7: 公务用车运行费
G8: =H8+I8+L8 -> 14.50 | I8: =J8+K8 -> 6.50 | K8: 6.50 | L8: 8.00

Sheet 5 政府性基金预算支出表
A1: 附件4-5
A2: 重庆市綦江区水利局（本级）政府性基金预算支出表
E4: 单位：万元
A5: 科目编码 | B5: 科目名称 | C5: 本年政府性基金预算财政拨款支出
C6: 合计 | D6: 基本支出 | E6: 项目支出
A7: 合计 | C7: =D7+E7 -> 5,939.66 | D7: =D8+D13 -> 0 | E7: =E8+E13 -> 5,939.66
A8: 212 | B8: 城乡社区支出 | C8: 5,364.36 | D8: 0 | E8: 5,364.36
A9: 21208 | B9: 国有土地使用权出让收入安排的支出 | C9: 5,164.36 | D9: 0 | E9: 5,164.36
A10: 2120804 | B10: 农村基础设施建设支出 | C10: 5,164.36 | D10: 0 | E10: 5,164.36
A11: 21211 | B11: 农业土地开发资金安排的支出 | C11: 200.00 | D11: 0 | E11: 200.00
A12: 21211 | B12: 农业土地开发资金安排的支出 | C12: 200.00 | D12: 0 | E12: 200.00
A13: 213 | B13: 农林水支出 | C13: 575.30 | D13: 0 | E13: 575.30
A14: 21372 | B14: 大中型水库移民后期扶持基金支出 | C14: 179.70 | D14: 0 | E14: 179.70
A15: 2137201 | B15: 移民补助 | C15: 169.70 | D15: 0 | E15: 169.70
A16: 2137202 | B16: 基础设施建设和经济发展 | C16: 10.00 | D16: 0 | E16: 10.00
A17: 21373 | B17: 小型水库移民扶助基金安排的支出 | C17: 395.60 | D17: 0 | E17: 395.60
A18: 2137302 | B18: 基础设施建设和经济发展 | C18: 395.60 | D18: 0 | E18: 395.60
A19: （备注：本单位无政府性基金收支，故此表无数据。）

Sheet 6 部门收支总表
A1: 附件4-6
A2: 重庆市綦江区水利局（本级）部门收支总表
D4: 单位：万元
A5: 收入 | C5: 支出
A6: 项目 | B6: 预算数 | C6: 项目 | D6: 预算数
A7: 一般公共预算拨款收入 | B7: 1,906.53 | C7: 科学技术支出 | D7: 0.00
A8: 政府性基金预算拨款收入 | B8: 5,728.36 | C8: 社会保障和就业支出 | D8: 123.53
A9: 国有资本经营预算拨款收入 | C9: 卫生健康支出 | D9: 25.84
A10: 事业收入预算 | C10: 节能环保支出 | D10: 500.00
A11: 事业单位经营收入预算 | C11: 城乡社区支出 | D11: 5,364.36
A12: 其他收入预算 | C12: 农林水支出 | D12: 45,323.37
C13: 住房保障支出 | D13: 30.39
A14: 本年收入合计 | B14: =SUM(B7:B12) -> 7,634.89 | C14: 本年支出合计 | D14: =SUM(D7:D13) -> 51,367.49
A15: 用事业基金弥补收支差额 | C15: 结转下年 | D15: 0.00
A16: 上年结转 | B16: 43,732.61
A17: 收入总计 | B17: =B14+B15+B16 -> 51,367.50 | C17: 支出总计 | D17: =D14+D15 -> 51,367.49

Sheet 7 部门收入总表
A1: 附件4-7
A2: 重庆市綦江区水利局（本级）部门收入总表
L4: 单位：万元
A5: 科目 | C5: 合计 | D5: 上年结转 | E5: 一般公共预算拨款收入 | F5: 政府性基金预算拨款收入 | G5: 国有资本经营预算拨款收入 | H5: 事业收入预算 | J5: 事业单位经营收入预算 | K5: 其他收入预算 | L5: 用事业基金弥补收支差额
A6: 科目编码 | B6: 科目名称 | H6: 非教育收费收入预算 | I6: 教育收费收入预算
A7: 合计 | C7: =D7+E7+F7 -> 51,367.50 | D7: =D8+D11+D16+D22+D25+D30+D53 -> 43,732.61 | E7: 1,906.53 | F7: 5,728.36
A8: 206 | B8: 科学技术支出 | C8: 0.00 | D8: 0.00 | E8: 0.00 | F8: 0.00
A9: 20604 | B9: 技术研究与开发 | C9: 0.00 | D9: 0.00 | E9: 0.00 | F9: 0.00
A10: 2060404 | B10: 科技成果转化与扩散 | C10: 0.00 | D10: 0.00 | E10: 0.00 | F10: 0.00
A11: 208 | B11: 社会保障和就业支出 | C11: 123.53 | D11: 0.00 | E11: 123.53 | F11: 0.00
A12: 20805 | B12: 行政事业单位养老支出 | C12: 123.53 | D12: 0.00 | E12: 123.53 | F12: 0.00
A13: 2080505 | B13: 机关事业单位基本养老保险缴费支出 | C13: 35.94 | D13: 0.00 | E13: 35.94 | F13: 0.00
A14: 2080506 | B14: 机关事业单位职业年金缴费支出 | C14: 17.97 | D14: 0.00 | E14: 17.97 | F14: 0.00
A15: 2080599 | B15: 其他行政事业单位养老支出 | C15: 69.62 | D15: 0.00 | E15: 69.62 | F15: 0.00
A16: 210 | B16: 卫生健康支出 | C16: 25.84 | D16: 0.00 | E16: 25.84 | F16: 0.00
A17: 21011 | B17: 行政事业单位医疗 | C17: 25.84 | D17: 0.00 | E17: 25.84 | F17: 0.00
A18: 2101101 | B18: 行政单位医疗 | C18: 23.44 | D18: 0.00 | E18: 23.44 | F18: 0.00
A19: 2101102 | B19: 事业单位医疗 | C19: 0.00 | D19: 0.00 | E19: 0.00 | F19: 0.00
A20: 2101103 | B20: 公务员医疗补助 | C20: 2.40 | D20: 0.00 | E20: 2.40 | F20: 0.00
A21: 2101199 | B21: 其他行政事业单位医疗支出 | C21: 0.00 | D21: 0.00 | E21: 0.00 | F21: 0.00
A22: 211 | B22: 节能环保支出 | C22: 500.00 | D22: 0.00 | E22: 500.00 | F22: 0.00
A23: 21103 | B23: 污染防治 | C23: 500.00 | D23: 0.00 | E23: 500.00 | F23: 0.00
A24: 2110302 | B24: 水体 | C24: 500.00 | D24: 0.00 | E24: 500.00 | F24: 0.00
A25: 212 | B25: 城乡社区支出 | C25: 5,364.36 | D25: 200.00 | E25: 0.00 | F25: 5,164.36
A26: 21208 | B26: 国有土地使用权出让收入安排的支出 | C26: 5,164.36 | D26: 0.00 | E26: 0.00 | F26: 5,164.36
A27: 2120804 | B27: 农村基础设施建设支出 | C27: 5,164.36 | D27: 0.00 | E27: 0.00 | F27: 5,164.36
A28: 21211 | B28: 农业土地开发资金安排的支出 | C28: 200.00 | D28: 200.00 | E28: 0.00 | F28: 0.00
A29: 21211 | B29: 农业土地开发资金安排的支出 | C29: 200.00 | D29: 200.00 | E29: 0.00 | F29: 0.00
A30: 213 | B30: 农林水支出 | C30: 45,323.38 | D30: 43,532.61 | E30: 1,226.77 | F30: 564.00
A31: 21303 | B31: 水利 | C31: 44,748.07 | D31: 43,521.30 | E31: 1,226.77 | F31: 0.00
A32: 2130301 | B32: 行政运行 | C32: 359.65 | D32: 0.00 | E32: 359.65 | F32: 0.00
A33: 2130302 | B33: 一般行政管理事务 | C33: 221.33 | D33: 0.00 | E33: 221.33 | F33: 0.00
A34: 2130304 | B34: 水利行业业务管理 | C34: 36.13 | D34: 0.00 | E34: 36.13 | F34: 0.00
A35: 2130305 | B35: 水利工程建设 | C35: 28,492.46 | D35: 28,005.46 | E35: 487.00 | F35: 0.00
A36: 2130306 | B36: 水利工程运行与维护 | C36: 0.00 | D36: 0.00 | E36: 0.00 | F36: 0.00
A37: 2130310 | B37: 水土保持 | C37: 94.43 | D37: 94.43 | E37: 0.00 | F37: 0.00
A38: 2130311 | B38: 水资源节约管理与保护 | C38: 144.67 | D38: 22.00 | E38: 122.67 | F38: 0.00
A39: 2130312 | B39: 水质监测 | C39: 0.00 | D39: 0.00 | E39: 0.00 | F39: 0.00
A40: 2130313 | B40: 水文测报 | C40: 129.80 | D40: 129.80 | E40: 0.00 | F40: 0.00
A41: 2130314 | B41: 防汛 | C41: 163.15 | D41: 163.15 | E41: 0.00 | F41: 0.00
A42: 2130315 | B42: 抗旱 | C42: 0.00 | D42: 0.00 | E42: 0.00 | F42: 0.00
A43: 2130316 | B43: 农村水利 | C43: 7,378.83 | D43: 7,378.83 | E43: 0.00 | F43: 0.00
A44: 2130319 | B44: 江河湖库水系综合整治 | C44: 7,727.64 | D44: 7,727.64 | E44: 0.00 | F44: 0.00
A45: 2130335 | B45: 农村供水 | C45: 0.00 | D45: 0.00 | E45: 0.00 | F45: 0.00
A46: 21305 | B46: 巩固脱贫攻坚成果衔接乡村振兴 | C46: 0.00 | D46: 0.00 | E46: 0.00 | F46: 0.00
A47: 2130504 | B47: 农村基础设施建设 | C47: 0.00 | D47: 0.00 | E47: 0.00 | F47: 0.00
A48: 21372 | B48: 大中型水库移民后期扶持基金支出 | C48: 179.70 | D48: 10.70 | E48: 0.00 | F48: 169.00
A49: 2137201 | B49: 移民补助 | C49: 169.70 | D49: 0.70 | E49: 0.00 | F49: 169.00
A50: 2137202 | B50: 基础设施建设和经济发展 | C50: 10.00 | D50: 10.00 | E50: 0.00 | F50: 0.00
A51: 21373 | B51: 小型水库移民扶助基金安排的支出 | C51: 395.60 | D51: 0.60 | E51: 0.00 | F51: 395.00
A52: 2137302 | B52: 基础设施建设和经济发展 | C52: 395.60 | D52: 0.60 | E52: 0.00 | F52: 395.00
A53: 221 | B53: 住房保障支出 | C53: 30.39 | D53: 0.00 | E53: 30.39 | F53: 0.00
A54: 22102 | B54: 住房改革支出 | C54: 30.39 | D54: 0.00 | E54: 30.39 | F54: 0.00
A55: 2210201 | B55: 住房公积金 | C55: 30.39 | D55: 0.00 | E55: 30.39 | F55: 0.00

Sheet 8 部门支出总表
A1: 附件4-8
A2: 重庆市綦江区水利局（本级）部门支出总表
H4: 单位：万元
A5: 科目编码 | B5: 科目名称 | C5: 合计 | D5: 基本支出 | E5: 项目支出 | F5: 上缴上级支出 | G5: 事业单位经营支出 | H5: 对下级单位补助支出
A6: 合计 | C6: =D6+E6 -> 51,367.50 | D6: =D7+D10+D15+D21+D24+D29+D52 -> 539.41 | E6: =E7+E10+E15+E21+E24+E29+E52 -> 50,828.09
A7: 206 | B7: 科学技术支出 | C7: 0.00 | D7: 0.00 | E7: 0.00
A8: 20604 | B8: 技术研究与开发 | C8: 0.00 | D8: 0.00 | E8: 0.00
A9: 2060404 | B9: 科技成果转化与扩散 | C9: 0.00 | D9: 0.00 | E9: 0.00
A10: 208 | B10: 社会保障和就业支出 | C10: 123.53 | D10: 123.53 | E10: 0.00
A11: 20805 | B11: 行政事业单位养老支出 | C11: 123.53 | D11: 123.53 | E11: 0.00
A12: 2080505 | B12: 机关事业单位基本养老保险缴费支出 | C12: 35.94 | D12: 35.94 | E12: 0.00
A13: 2080506 | B13: 机关事业单位职业年金缴费支出 | C13: 17.97 | D13: 17.97 | E13: 0.00
A14: 2080599 | B14: 其他行政事业单位养老支出 | C14: 69.62 | D14: 69.62 | E14: 0.00
A15: 210 | B15: 卫生健康支出 | C15: 25.84 | D15: 25.84 | E15: 0.00
A16: 21011 | B16: 行政事业单位医疗 | C16: 25.84 | D16: 25.84 | E16: 0.00
A17: 2101101 | B17: 行政单位医疗 | C17: 23.44 | D17: 23.44 | E17: 0.00
A18: 2101102 | B18: 事业单位医疗 | C18: 0.00 | D18: 0.00 | E18: 0.00
A19: 2101103 | B19: 公务员医疗补助 | C19: 2.40 | D19: 2.40 | E19: 0.00
A20: 2101199 | B20: 其他行政事业单位医疗支出 | C20: 0.00 | D20: 0.00 | E20: 0.00
A21: 211 | B21: 节能环保支出 | C21: 500.00 | D21: 0.00 | E21: 500.00
A22: 21103 | B22: 污染防治 | C22: 500.00 | D22: 0.00 | E22: 500.00
A23: 2110302 | B23: 水体 | C23: 500.00 | D23: 0.00 | E23: 500.00
A24: 212 | B24: 城乡社区支出 | C24: 5,364.36 | D24: 0.00 | E24: 5,364.36
A25: 21208 | B25: 国有土地使用权出让收入安排的支出 | C25: 5,164.36 | D25: 0.00 | E25: 5,164.36
A26: 2120804 | B26: 农村基础设施建设支出 | C26: 5,164.36 | D26: 0.00 | E26: 5,164.36
A27: 21211 | B27: 农业土地开发资金安排的支出 | C27: 200.00 | D27: 0.00 | E27: 200.00
A28: 21211 | B28: 农业土地开发资金安排的支出 | C28: 200.00 | D28: 0.00 | E28: 200.00
A29: 213 | B29: 农林水支出 | C29: 45,323.38 | D29: 359.65 | E29: 44,963.73
A30: 21303 | B30: 水利 | C30: 44,748.08 | D30: 359.65 | E30: 44,388.43
A31: 2130301 | B31: 行政运行 | C31: 359.65 | D31: 359.65 | E31: 0.00
A32: 2130302 | B32: 一般行政管理事务 | C32: 221.33 | D32: 0.00 | E32: 221.33
A33: 2130304 | B33: 水利行业业务管理 | C33: 36.13 | D33: 0.00 | E33: 36.13
A34: 2130305 | B34: 水利工程建设 | C34: 28,492.46 | D34: 0.00 | E34: 28,492.46
A35: 2130306 | B35: 水利工程运行与维护 | C35: 0.00 | D35: 0.00 | E35: 0.00
A36: 2130310 | B36: 水土保持 | C36: 94.43 | D36: 0.00 | E36: 94.43
A37: 2130311 | B37: 水资源节约管理与保护 | C37: 144.67 | D37: 0.00 | E37: 144.67
A38: 2130312 | B38: 水质监测 | C38: 0.00 | D38: 0.00 | E38: 0.00
A39: 2130313 | B39: 水文测报 | C39: 129.80 | D39: 0.00 | E39: 129.80
A40: 2130314 | B40: 防汛 | C40: 163.15 | D40: 0.00 | E40: 163.15
A41: 2130315 | B41: 抗旱 | C41: 0.00 | D41: 0.00 | E41: 0.00
A42: 2130316 | B42: 农村水利 | C42: 7,378.83 | D42: 0.00 | E42: 7,378.83
A43: 2130319 | B43: 江河湖库水系综合整治 | C43: 7,727.64 | D43: 0.00 | E43: 7,727.64
A44: 2130335 | B44: 农村供水 | C44: 0.00 | D44: 0.00 | E44: 0.00
A45: 21305 | B45: 巩固脱贫攻坚成果衔接乡村振兴 | C45: 0.00 | D45: 0.00 | E45: 0.00
A46: 2130504 | B46: 农村基础设施建设 | C46: 0.00 | D46: 0.00 | E46: 0.00
A47: 21372 | B47: 大中型水库移民后期扶持基金支出 | C47: 179.70 | D47: 0.00 | E47: 179.70
A48: 2137201 | B48: 移民补助 | C48: 169.70 | D48: 0.00 | E48: 169.70
A49: 2137202 | B49: 基础设施建设和经济发展 | C49: 10.00 | D49: 0.00 | E49: 10.00
A50: 21373 | B50: 小型水库移民扶助基金安排的支出 | C50: 395.60 | D50: 0.00 | E50: 395.60
A51: 2137302 | B51: 基础设施建设和经济发展 | C51: 395.60 | D51: 0.00 | E51: 395.60
A52: 221 | B52: 住房保障支出 | C52: 30.39 | D52: 30.39 | E52: 0.00
A53: 22102 | B53: 住房改革支出 | C53: 30.39 | D53: 30.39 | E53: 0.00
A54: 2210201 | B54: 住房公积金 | C54: 30.39 | D54: 30.39 | E54: 0.00

Sheet 9 政府采购明细表
A1: 附件4-9
A2: 重庆市綦江区水利局（本级）政府采购预算明细表
K3: 单位：万元
A4: 项目 | B4: 合计 | C4: 上年结转 | D4: 一般公共预算拨款收入 | E4: 政府性基金预算拨款收入 | F4: 国有资本经营预算拨款收入 | G4: 事业收入预算 | I4: 事业单位经营收入预算 | J4: 其他收入预算 | K4: 用事业基金弥补收支差额
G5: 非教育收费收入预算 | H5: 教育收费收入预算
A6: 合计 | B6: =C6+D6+E6 -> 4 | C6: =SUM(C7:C9) -> 0 | D6: =SUM(D7:D9) -> 4 | E6: =SUM(E7:E9) -> 0
A7: 货物类 | B7: 4 | C7: 0 | D7: 4 | E7: 0
A8: 服务类 | B8: 0 | C8: 0 | D8: 0 | E8: 0
A9: 工程类 | B9: 0 | C9: 0 | D9: 0 | E9: 0

Sheet 10 部门整体绩效目标表
A1: 附件4-10
A2: 2025年部门（单位）整体支出绩效目标表
A3: 预算部门
A4: 总体资金情况（元） | C4: 预算支出总额 | D4: 基本支出 | H4: 项目支出
D5: 合计 | E5: 财政拨款 | F5: 专户资金 | G5: 单位资金 | H5: 合计 | I5: 财政拨款 | J5: 专户资金 | K5: 单位资金
A7: 部 门 整 体 绩 效 情 况 | B7: 整体绩效目标
B8: 年度绩效指标
B9: 一级指标 | C9: 二级指标 | D9: 三级指标 | F9: 绩效指标性质 | H9: 绩效指标值 | I9: 绩效度量单位 | J9: 权重
A15: 其他说明

Sheet 11 区级项目资金绩效目标表
A1: 附件4-11
A2: 2025年财政资金项目支出绩效目标表
A3: 单位：万元
A4: 申报单位 | B4: 217001-重庆市綦江区水利局（本级） | F4: 项目编码 | G4: 50011021T000000050905
A6: 项目名称 | B6: 綦江区节水型社会建设
A7: 项目类型 | E7: 联系人 | G7: 联系电话
A8: 当年预算（万元) | B8: 29.70 | E8: 上级资金
E9: 本级资金 | G9: 29.70
E10: 其他资金
A11: 项目概况 | B11: 为了认真贯彻落实国家节约用水条例，创建节水型县域社会达标建设，完成整体任务指标。
A12: 立项依据
A13: 当年实施进度计划
A14: 当年整体绩效目标 | B14: 创建节水型单位2个，节水型企业2个，节水型小区3个,节水型灌区1个
A16: 当年绩效指标 | B16: 一级指标 | C16: 二级指标 | D16: 三级指标 | F16: 指标性质 | G16: 指标值 | H16: 度量单位 | I16: 权重
B17: 产出指标 | C17: 数量指标 | D17: 节水型企业数量 | F17: ≥ | G17: 2 | H17: 个 | I17: 20
B18: 产出指标 | C18: 成本指标 | D18: 节水型企业 | F18: ≤ | G18: 5 | H18: 万元/个 | I18: 20
B19: 满意度指标 | C19: 服务对象满意度指标 | D19: 服务群众满意度 | F19: ≥ | G19: 90 | H19: % | I19: 10
B20: 效益指标 | C20: 生态效益指标 | D20: 生态环境影响控制及生态效益发挥基本符合要求的比例 | F20: ≥ | G20: 80 | H20: % | I20: 20
B21: 产出指标 | C21: 数量指标 | D21: 节水型小区数量 | F21: ≥ | G21: 3 | H21: 个 | I21: 20
A22: 2025年财政资金项目支出绩效目标表
A23: 单位：万元
A24: 申报单位 | B24: 217001-重庆市綦江区水利局（本级） | F24: 项目编码 | G24: 50011021T000000050908
A26: 项目名称 | B26: 全区水利设施监控运营经费
A27: 项目类型 | E27: 联系人 | G27: 联系电话
A28: 当年预算（万元) | B28: 55.00 | E28: 上级资金
E29: 本级资金 | G29: 55.00
E30: 其他资金
A31: 项目概况 | B31: 水利基础设施网络建设
A32: 立项依据
A33: 当年实施进度计划
A34: 当年整体绩效目标 | B34: 保证监控正常运转率达到90%
A36: 当年绩效指标 | B36: 一级指标 | C36: 二级指标 | D36: 三级指标 | F36: 指标性质 | G36: 指标值 | H36: 度量单位 | I36: 权重
B37: 产出指标 | C37: 数量指标 | D37: 合同时间 | F37: ＝ | G37: 1 | H37: 年 | I37: 20
B38: 产出指标 | C38: 成本指标 | D38: 合同总价款 | F38: ≤ | G38: 55 | H38: 万元 | I38: 20
B39: 满意度指标 | C39: 服务对象满意度指标 | D39: 服务群众满意度 | F39: ≥ | G39: 90 | H39: % | I39: 10
B40: 效益指标 | C40: 社会效益指标 | D40: 保证监控正常运转率 | F40: ≥ | G40: 90 | H40: % | I40: 20
B41: 效益指标 | C41: 可持续影响指标 | D41: 设施故障率 | F41: ≤ | G41: 5 | H41: % | I41: 20
A42: 2025年财政资金项目支出绩效目标表
A43: 单位：万元
A44: 申报单位 | B44: 217001-重庆市綦江区水利局（本级） | F44: 项目编码 | G44: 50011021T000000050918
A46: 项目名称 | B46: 重庆市綦江区水利项目专家评审费用
A47: 项目类型 | E47: 联系人 | G47: 联系电话
A48: 当年预算（万元) | B48: 36.13 | E48: 上级资金
E49: 本级资金 | G49: 36.13
E50: 其他资金
A51: 项目概况 | B51: 根据重庆市人民政府《关于印发重庆市保留为行政审批必要条件的中介事务清单（2021年版）的通知》（渝府发【2021】20号）要求，行政审批部门在办理行政审批过程中委托中介服务开展的各类技术审查，自行承担服务费用，不得转嫁给市场主体承担。区水利局在初步设计、洪水影响评价、水土保持方案、取水许可等行政审批过程中需要开展技术审查，为减少费用，拟组织专家组进行技术审查，每次评审邀请5名专家，其中专家组长劳务费1000元，其余每名专家劳务费800元，每次评审4200元。全年预计110次，合计46.2万元（据实结算）单位申请46.2万元，2024年因增发国债项目评审专家费增加，预计2025年项目减少，因此建议按压减后的预算36.125万元安排。
A52: 立项依据
A53: 当年实施进度计划
A54: 当年整体绩效目标 | B54: 全年完成87次相关评审工作
A56: 当年绩效指标 | B56: 一级指标 | C56: 二级指标 | D56: 三级指标 | F56: 指标性质 | G56: 指标值 | H56: 度量单位 | I56: 权重
B57: 产出指标 | C57: 时效指标 | D57: 评审费用支付及时率 | F57: ＝ | G57: 100 | H57: % | I57: 20
B58: 效益指标 | C58: 经济效益指标 | D58: 保持成果利用率 | F58: ≥ | G58: 95 | H58: % | I58: 20
B59: 满意度指标 | C59: 服务对象满意度指标 | D59: 服务群众满意度 | F59: ≥ | G59: 90 | H59: % | I59: 10
B60: 产出指标 | C60: 成本指标 | D60: 评审费用标准 | F60: ≤ | G60: 4400 | H60: 元 | I60: 20
B61: 产出指标 | C61: 数量指标 | D61: 完成评审对象数量 | F61: ≥ | G61: 87 | H61: 次 | I61: 20
A62: 2025年财政资金项目支出绩效目标表
A63: 单位：万元
A64: 申报单位 | B64: 217001-重庆市綦江区水利局（本级） | F64: 项目编码 | G64: 50011021T000000050921
A66: 项目名称 | B66: 区级河长制专项资金
A67: 项目类型 | B67: 一般性项目 | E67: 联系人 | G67: 联系电话
A68: 当年预算（万元) | B68: 500.00 | E68: 上级资金
E69: 本级资金 | G69: 500.00
E70: 其他资金
A71: 项目概况 | B71: 日常河库保洁、河道清漂、河长公示牌更换
A72: 立项依据 | B72: 河长制
A73: 当年实施进度计划
A74: 当年整体绩效目标 | B74: 改善河流水环境
A76: 当年绩效指标 | B76: 一级指标 | C76: 二级指标 | D76: 三级指标 | F76: 指标性质 | G76: 指标值 | H76: 度量单位 | I76: 权重
B77: 产出指标 | C77: 数量指标 | D77: 河道日常保洁 | F77: ≥ | G77: 300 | H77: % | I77: 20
B78: 产出指标 | C78: 时效指标 | D78: 工作完成按时率 | F78: ≥ | G78: 90 | H78: % | I78: 20
B79: 效益指标 | C79: 经济效益指标 | D79: 河流水质改善率 | F79: ≥ | G79: 90 | H79: % | I79: 20
B80: 效益指标 | C80: 生态效益指标 | D80: 河库水域及岸坡干净度 | F80: ≥ | G80: 90 | H80: % | I80: 20
B81: 满意度指标 | C81: 服务对象满意度指标 | D81: 群众满意度 | F81: ≥ | G81: 90 | H81: % | I81: 10
A82: 2025年财政资金项目支出绩效目标表
A83: 单位：万元
A84: 申报单位 | B84: 217001-重庆市綦江区水利局（本级） | F84: 项目编码 | G84: 50011022T000000086125
A86: 项目名称 | B86: 河长制工作经费
A87: 项目类型 | E87: 联系人 | G87: 联系电话
A88: 当年预算（万元) | B88: 28.90 | E88: 上级资金
E89: 本级资金 | G89: 28.90
E90: 其他资金
A91: 项目概况 | B91: 区级河长公示牌更换、河长制工作的宣传及河道日常巡查
A92: 立项依据
A93: 当年实施进度计划
A94: 当年整体绩效目标 | B94: 确保河长制工作有序开展
A96: 当年绩效指标 | B96: 一级指标 | C96: 二级指标 | D96: 三级指标 | F96: 指标性质 | G96: 指标值 | H96: 度量单位 | I96: 权重
B97: 产出指标 | C97: 质量指标 | D97: 河长公示牌更换达标率 | F97: ≥ | G97: 90 | H97: % | I97: 20
B98: 效益指标 | C98: 经济效益指标 | D98: 河流水质改善率 | F98: ≥ | G98: 90 | H98: % | I98: 20
B99: 产出指标 | C99: 成本指标 | D99: 河长制宣传成本 | F99: ≤ | G99: 19.9 | H99: 万元 | I99: 20
B100: 满意度指标 | C100: 服务对象满意度指标 | D100: 群众满意度 | F100: ≥ | G100: 90 | H100: % | I100: 10
B101: 效益指标 | C101: 社会效益指标 | D101: 河道巡查发现率 | F101: ≥ | G101: 90 | H101: % | I101: 20
A102: 2025年财政资金项目支出绩效目标表
A103: 单位：万元
A104: 申报单位 | B104: 217001-重庆市綦江区水利局（本级） | F104: 项目编码 | G104: 50011023T000003402541
A106: 项目名称 | B106: 鱼栏咀水库保护区范围内搬迁户土地租赁补偿费
A107: 项目类型 | B107: 一般性项目 | E107: 联系人 | G107: 联系电话
A108: 当年预算（万元) | B108: 12.22 | E108: 上级资金
E109: 本级资金 | G109: 12.22
E110: 其他资金
A111: 项目概况 | B111: 完成2025年鱼栏咀水库保护区范围内农户土地租赁，以保护城市饮用水源。
A112: 立项依据 | B112: 水资源保护与水土保持工作
A113: 当年实施进度计划
A114: 当年整体绩效目标 | B114: 完成对搬迁户2024年租赁土地的费用支付。
A116: 当年绩效指标 | B116: 一级指标 | C116: 二级指标 | D116: 三级指标 | F116: 指标性质 | G116: 指标值 | H116: 度量单位 | I116: 权重
B117: 效益指标 | C117: 可持续发展指标 | D117: 水生态环境良好率 | F117: ≥ | G117: 90 | H117: % | I117: 20
B118: 满意度指标 | C118: 服务对象满意度指标 | D118: 农户满意度 | F118: ≥ | G118: 90 | H118: % | I118: 5
B119: 满意度指标 | C119: 服务对象满意度指标 | D119: 城区原水满意度 | F119: ≥ | G119: 90 | H119: % | I119: 5
B120: 产出指标 | C120: 数量指标 | D120: 租赁土地面积 | F120: ≥ | G120: 203.593 | H120: 亩 | I120: 40
B121: 效益指标 | C121: 生态效益指标 | D121: 水质目标类别 | F121: 定性 | G121: Ⅲ类 | I121: 20
A122: 2025年财政资金项目支出绩效目标表
A123: 单位：万元
A124: 申报单位 | B124: 217001-重庆市綦江区水利局（本级） | F124: 项目编码 | G124: 50011023T000003402559
A126: 项目名称 | B126: 綦江区水资源节约与保护
A127: 项目类型 | B127: 一般性项目 | E127: 联系人 | G127: 联系电话
A128: 当年预算（万元) | B128: 30.00 | E128: 上级资金
E129: 本级资金 | G129: 30.00
E130: 其他资金
A131: 项目概况 | B131: 1.根据《重庆市綦江区人民政府办公室关于进一步强化集中式饮用水水源地环境保护的通知》綦江府发〔2016〕82号、《重庆市綦江区人民政府办公室关于加强农村分散式饮用水水源地保护的通知》綦江府办〔2021〕5号要求，完成入库支流和库内生态修复与保护，加强取水许可，加强水源巡查监管，对水源保护工作进行监督指导等，预计20万。2.渝綦水务公司2025年鱼栏咀水库饮用水源二级保护区内污水收集工程的污水收集转运、管网日常运行维护经费，预计10万。
A132: 立项依据 | B132: 水资源保护与水土保持工作
A133: 当年实施进度计划
A134: 当年整体绩效目标 | B134: 完成市水利局最严格水资源管理达标率考核（取水许可管理和饮用水源保护部分）
A136: 当年绩效指标 | B136: 一级指标 | C136: 二级指标 | D136: 三级指标 | F136: 指标性质 | G136: 指标值 | H136: 度量单位 | I136: 权重
B137: 产出指标 | C137: 时效指标 | D137: 鱼栏咀水库生活污水转运按时完成率 | F137: ＝ | G137: 100 | H137: % | I137: 20
B138: 满意度指标 | C138: 服务对象满意度指标 | D138: 服务群众满意度 | F138: ≥ | G138: 90 | H138: % | I138: 10
B139: 产出指标 | C139: 数量指标 | D139: 有效运行污水收集池数量 | F139: ≥ | G139: 6 | H139: 个 | I139: 20
B140: 产出指标 | C140: 数量指标 | D140: 转运污水方量 | F140: ≥ | G140: 2500 | H140: 立方米 | I140: 20
B141: 效益指标 | C141: 生态效益指标 | D141: 饮用水源水质 | F141: ≥ | G141: 3 | H141: 类 | I141: 20
A142: 2025年财政资金项目支出绩效目标表
A143: 单位：万元
A144: 申报单位 | B144: 217001-重庆市綦江区水利局（本级） | F144: 项目编码 | G144: 50011024T000004133290
A146: 项目名称 | B146: 綦江区水资源管理信息系统运行维护
A147: 项目类型 | B147: 一般性项目 | E147: 联系人 | G147: 联系电话
A148: 当年预算（万元) | B148: 35.00 | E148: 上级资金
E149: 本级资金 | G149: 35.00
E150: 其他资金
A151: 项目概况 | B151: 1、完成2024-2025年綦江区所有监测站点的运行维护，确保“三率”达标；2、完成部分监测站点计量设施的校准检定；3、农村水厂计量设施的安装；4、不定期更换损坏的计量设施，确保正常运行计量。
A152: 立项依据 | B152: 水资源保护与水土保持工作
A153: 当年实施进度计划
A154: 当年整体绩效目标 | B154: 保证监控点正常运行，实时监控取水户的用水总量，严格控制用水总量，确保“三条红线”不超指标。
A156: 当年绩效指标 | B156: 一级指标 | C156: 二级指标 | D156: 三级指标 | F156: 指标性质 | G156: 指标值 | H156: 度量单位 | I156: 权重
B157: 产出指标 | C157: 数量指标 | D157: 运行维护监测点位 | F157: ≥ | G157: 55 | H157: 处 | I157: 20
B158: 满意度指标 | C158: 服务对象满意度指标 | D158: 服务群众满意度 | F158: ≥ | G158: 90 | H158: % | I158: 10
B159: 效益指标 | C159: 社会效益指标 | D159: 监控点正常运行率 | F159: ＝ | G159: 90 | H159: % | I159: 20
B160: 产出指标 | C160: 质量指标 | D160: 监控点三率 | F160: ≥ | G160: 95 | H160: % | I160: 20
B161: 产出指标 | C161: 成本指标 | D161: 收费标准 | F161: ≤ | G161: 3000 | H161: 元/个 | I161: 20
A162: 2025年财政资金项目支出绩效目标表
A163: 单位：万元
A164: 申报单位 | B164: 217001-重庆市綦江区水利局（本级） | F164: 项目编码 | G164: 50011024T000004292784
A166: 项目名称 | B166: 水安全保障工程专项（中型水库、中小河流治理）市级资金-长江主要支流治理工程
A167: 项目类型 | B167: 一般性项目 | E167: 联系人 | G167: 联系电话
A168: 当年预算（万元) | B168: 487.00 | E168: 上级资金 | G168: 487.00
E169: 本级资金
E170: 其他资金
A171: 项目概况 | B171: 重庆市财政局关于提前下达2024年水安全保障工程专项（中型水库、中小河流治理）市级资金预算的通知
A172: 立项依据 | B172: 转移支付
A173: 当年实施进度计划
A174: 当年整体绩效目标 | B174: 年度投资计划执行良好，保障建设质量和效益，有效控制投资概算，2024年完工项目可初步发挥效益。
A176: 当年绩效指标 | B176: 一级指标 | C176: 二级指标 | D176: 三级指标 | F176: 指标性质 | G176: 指标值 | H176: 度量单位 | I176: 权重
B177: 满意度指标 | C177: 服务对象满意度指标 | D177: 受益群众基本满意的比例 | F177: ≥ | G177: 90 | H177: % | I177: 10
B178: 效益指标 | C178: 可持续发展指标 | D178: 建设方案和施工质量总体符合工程设计或有关规范标准的项目比例 | F178: ≥ | G178: 95 | H178: % | I178: 20
B179: 产出指标 | C179: 质量指标 | D179: 年度建设任务量完成率 | F179: ≥ | G179: 80 | H179: % | I179: 20
B180: 产出指标 | C180: 质量指标 | D180: 年度工程质量合格率 | F180: ≥ | G180: 85 | H180: % | I180: 20
B181: 产出指标 | C181: 数量指标 | D181: 支持项目数量（个） | F181: ＝ | G181: 1 | H181: 个 | I181: 20
A182: 2025年财政资金项目支出绩效目标表
A183: 单位：万元
A184: 申报单位 | B184: 217001-重庆市綦江区水利局（本级） | F184: 项目编码 | G184: 50011025T000004957443
A186: 项目名称 | B186: 福林水库土地成本
A187: 项目类型 | B187: 一般性项目 | E187: 联系人 | G187: 联系电话
A188: 当年预算（万元) | B188: 5,164.36 | E188: 上级资金
E189: 本级资金 | G189: 5,164.36
E190: 其他资金
A191: 项目概况 | B191: 福林水库工程需征收集体土地64.4398公顷，其中19.277万平方米需办理土地划拨手续，并缴纳划拨土地价款5494万元。
A192: 立项依据 | B192: 水利工程建设与管理
A193: 当年实施进度计划
A194: 当年整体绩效目标 | B194: 完成19.277万平方米土地划拨
A196: 当年绩效指标 | B196: 一级指标 | C196: 二级指标 | D196: 三级指标 | F196: 指标性质 | G196: 指标值 | H196: 度量单位 | I196: 权重
B197: 效益指标 | C197: 社会效益指标 | D197: 形成项目资产 | F197: ≥ | G197: 5164.36 | H197: 万元 | I197: 20
B198: 产出指标 | C198: 成本指标 | D198: 成本控制率 | F198: ≤ | G198: 5164.36 | H198: 万元 | I198: 20
B199: 满意度指标 | C199: 服务对象满意度指标 | D199: 征地群众满意度 | F199: ≥ | G199: 90 | H199: % | I199: 10
B200: 产出指标 | C200: 时效指标 | D200: 按时支付率 | F200: ＝ | G200: 100 | H200: % | I200: 20
B201: 产出指标 | C201: 数量指标 | D201: 完成土地划拨面积 | F201: ≥ | G201: 192770 | H201: 平方米 | I201: 20
A202: 2025年财政资金项目支出绩效目标表
A203: 单位：万元
A204: 申报单位 | B204: 217001-重庆市綦江区水利局（本级） | F204: 项目编码 | G204: 50011025T000004957673
A206: 项目名称 | B206: 办公用房租金
A207: 项目类型 | B207: 一般性项目 | E207: 联系人 | G207: 联系电话
A208: 当年预算（万元) | B208: 112.76 | E208: 上级资金
E209: 本级资金 | G209: 112.76
E210: 其他资金
A211: 项目概况 | B211: 租赁办公场地位于阳光商务写字楼21、22、23三层，共计3371.82平方米，租金为35元/平方米。
A212: 立项依据 | B212: 人员补助与房屋租赁
A213: 当年实施进度计划
A214: 当年整体绩效目标 | B214: 确保办公正常运行
A216: 当年绩效指标 | B216: 一级指标 | C216: 二级指标 | D216: 三级指标 | F216: 指标性质 | G216: 指标值 | H216: 度量单位 | I216: 权重
B217: 效益指标 | C217: 可持续影响指标 | D217: 租赁持续年限 | F217: ＝ | G217: 1 | H217: 年 | I217: 20
B218: 效益指标 | C218: 社会效益指标 | D218: 保证机构正常运转率 | F218: ＝ | G218: 100 | H218: % | I218: 20
B219: 满意度指标 | C219: 服务对象满意度指标 | D219: 服务群众满意度 | F219: ≥ | G219: 90 | H219: % | I219: 10
B220: 产出指标 | C220: 数量指标 | D220: 租赁办公用房面积 | F220: ≥ | G220: 3371.82 | H220: 平方米 | I220: 20
B221: 产出指标 | C221: 成本指标 | D221: 租赁付款额 | F221: ≤ | G221: 1416164.4 | H221: 元 | I221: 20
A222: 2025年财政资金项目支出绩效目标表
... 455 more rows
